[Event "Titled Tuesday Blitz April 26 Early 2022"]
[White "Gutierrez Olivares, Daniel"]
[Black "Bilych, Olexiy"]
[WhiteFideId "2264005"]
[BlackFideId "14156504"]
[WhiteElo "2317"]
[BlackElo "2176"]
[Result "0-1"]
[Round "02"]
[TimeControl "180+1"]
[Date "2022.04.26"]
[WhiteClock "0:00:11"]
[BlackClock "0:00:12"]

1. Nf3 {[%clk 0:03:00]}  d5 {[%clk 0:02:59]} 2. c4 {[%clk 0:03:00]}  c6 {[%clk 0:02:55]} 3. g3 {[%clk 0:02:59]}  Nf6 {[%clk 0:02:55]} 4. Bg2 {[%clk 0:02:59]}  g6 {[%clk 0:02:52]} 5. b3 {[%clk 0:02:59]}  Bg7 {[%clk 0:02:52]} 6. Bb2 {[%clk 0:02:59]}  O-O {[%clk 0:02:52]} 7. O-O {[%clk 0:02:59]}  a5 {[%clk 0:02:53]} 8. Na3 {[%clk 0:02:55]}  a4 {[%clk 0:02:26]} 9. d3 {[%clk 0:02:47]}  Qa5 {[%clk 0:02:14]} 10. Nc2 {[%clk 0:02:21]}  Rd8 {[%clk 0:01:41]} 11. b4 {[%clk 0:02:01]}  Qa6 {[%clk 0:01:40]} 12. c5 {[%clk 0:01:47]}  Bg4 {[%clk 0:01:39]} 13. a3 {[%clk 0:01:45]}  Nbd7 {[%clk 0:01:38]} 14. h3 {[%clk 0:01:44]}  Bxf3 {[%clk 0:01:37]} 15. Bxf3 {[%clk 0:01:45]}  e5 {[%clk 0:01:37]} 16. Qc1 {[%clk 0:01:36]}  Re8 {[%clk 0:01:37]} 17. Bg2 {[%clk 0:01:29]}  h5 {[%clk 0:01:36]} 18. e4 {[%clk 0:01:14]}  Qxd3 {[%clk 0:01:27]} 19. Rd1 {[%clk 0:01:13]}  Qb5 {[%clk 0:01:21]} 20. Ne3 {[%clk 0:01:06]}  d4 {[%clk 0:01:18]} 21. Nc4 {[%clk 0:01:06]}  Bf8 {[%clk 0:01:13]} 22. Bf1 {[%clk 0:01:06]}  Qa6 {[%clk 0:01:07]} 23. Nxe5 {[%clk 0:01:03]}  Qa7 {[%clk 0:01:01]} 24. Nxd7 {[%clk 0:01:03]}  Nxd7 {[%clk 0:01:02]} 25. Rxd4 {[%clk 0:01:03]}  Ne5 {[%clk 0:01:01]} 26. f4 {[%clk 0:01:01]}  Nf3+ {[%clk 0:01:01]} 27. Kg2 {[%clk 0:00:57]}  Nxd4 {[%clk 0:01:01]} 28. Bxd4 {[%clk 0:00:58]}  Bg7 {[%clk 0:00:58]} 29. Bxg7 {[%clk 0:00:54]}  Kxg7 {[%clk 0:00:59]} 30. Qc3+ {[%clk 0:00:54]}  f6 {[%clk 0:00:58]} 31. e5 {[%clk 0:00:54]}  fxe5 {[%clk 0:00:55]} 32. Bc4 {[%clk 0:00:52]}  Qb8 {[%clk 0:00:54]} 33. Rd1 {[%clk 0:00:48]}  Qc7 {[%clk 0:00:53]} 34. Rd6 {[%clk 0:00:47]}  Qe7 {[%clk 0:00:41]} 35. Bd3 {[%clk 0:00:41]}  Rg8 {[%clk 0:00:21]} 36. fxe5 {[%clk 0:00:32]}  Kh6 {[%clk 0:00:18]} 37. Qd2+ {[%clk 0:00:30]}  Qg5 {[%clk 0:00:19]} 38. Qc2 {[%clk 0:00:25]}  Rae8 {[%clk 0:00:17]} 39. e6 {[%clk 0:00:19]}  Re7 {[%clk 0:00:14]} 40. h4 {[%clk 0:00:18]}  Qf6 {[%clk 0:00:14]} 41. Qd2+ {[%clk 0:00:18]}  Kg7 {[%clk 0:00:14]} 42. Bc4 {[%clk 0:00:11]}  Rf8 {[%clk 0:00:15]} 43. Rd7 {[%clk 0:00:11]}  Rxd7 {[%clk 0:00:12]} 44. exd7 {[%clk 0:00:11]}  Rd8 {[%clk 0:00:13]} 45. Qd3 {[%clk 0:00:07]}  Qe7 {[%clk 0:00:11]} 46. Ba2 {[%clk 0:00:06]}  Rxd7 {[%clk 0:00:11]} 47. Qc3+ {[%clk 0:00:07]}  Qf6 {[%clk 0:00:11]} 48. Qxf6+ {[%clk 0:00:07]}  Kxf6 {[%clk 0:00:12]} 49. Bb1 {[%clk 0:00:08]}  Rd2+ {[%clk 0:00:12]} 50. Kh3 {[%clk 0:00:08]}  Rb2 {[%clk 0:00:12]} 51. Be4 {[%clk 0:00:09]}  Rb3 {[%clk 0:00:12]} 52. b5 {[%clk 0:00:10]}  Rxb5 {[%clk 0:00:12]} 53. Bd3 {[%clk 0:00:10]}  Rxc5 {[%clk 0:00:12]} 54. Be2 {[%clk 0:00:11]}  Rc3 {[%clk 0:00:13]} 55. Bxh5 {[%clk 0:00:11]}  gxh5 {[%clk 0:00:12]} 0-1


[Site "https://www.chess.com"]

[Event "Titled Tuesday Blitz April 26 Early 2022"]
[White "Harikrishna, Pentala"]
[Black "Popadic, Dragan"]
[WhiteFideId "5007003"]
[BlackFideId "913650"]
[WhiteElo "2574"]
[BlackElo "2203"]
[Result "1-0"]
[Round "02"]
[TimeControl "180+1"]
[Date "2022.04.26"]
[WhiteClock "0:00:40"]
[BlackClock "0:00:50"]

1. e4 {[%clk 0:03:00]}  c5 {[%clk 0:02:59]} 2. c3 {[%clk 0:02:58]}  g6 {[%clk 0:02:56]} 3. d4 {[%clk 0:02:58]}  cxd4 {[%clk 0:02:56]} 4. cxd4 {[%clk 0:02:58]}  Bg7 {[%clk 0:02:56]} 5. Nc3 {[%clk 0:02:58]}  d6 {[%clk 0:02:56]} 6. h3 {[%clk 0:02:55]}  Nf6 {[%clk 0:02:56]} 7. Nf3 {[%clk 0:02:55]}  O-O {[%clk 0:02:56]} 8. Be2 {[%clk 0:02:55]}  a6 {[%clk 0:02:56]} 9. a4 {[%clk 0:02:54]}  b6 {[%clk 0:02:54]} 10. O-O {[%clk 0:02:53]}  Bb7 {[%clk 0:02:50]} 11. d5 {[%clk 0:02:53]}  Nbd7 {[%clk 0:02:48]} 12. Nd4 {[%clk 0:02:51]}  Nc5 {[%clk 0:02:42]} 13. Bf3 {[%clk 0:02:51]}  a5 {[%clk 0:02:41]} 14. Nc6 {[%clk 0:02:42]}  Bxc6 {[%clk 0:02:40]} 15. dxc6 {[%clk 0:02:42]}  Rc8 {[%clk 0:02:36]} 16. Bg5 {[%clk 0:01:29]}  e5 {[%clk 0:02:13]} 17. Nd5 {[%clk 0:01:24]}  Rxc6 {[%clk 0:02:11]} 18. Rc1 {[%clk 0:01:22]}  h6 {[%clk 0:01:48]} 19. Nxf6+ {[%clk 0:01:21]}  Bxf6 {[%clk 0:01:48]} 20. Bxh6 {[%clk 0:01:21]}  Bg7 {[%clk 0:01:48]} 21. Be3 {[%clk 0:01:18]}  Qe7 {[%clk 0:01:42]} 22. Qd5 {[%clk 0:01:17]}  Rcc8 {[%clk 0:01:40]} 23. Rfd1 {[%clk 0:01:17]}  Rfd8 {[%clk 0:01:38]} 24. Be2 {[%clk 0:01:08]}  Nxa4 {[%clk 0:01:29]} 25. Rxc8 {[%clk 0:01:05]}  Rxc8 {[%clk 0:01:28]} 26. Bb5 {[%clk 0:00:54]}  Nc5 {[%clk 0:01:25]} 27. Qxd6 {[%clk 0:00:54]}  Qxd6 {[%clk 0:01:25]} 28. Rxd6 {[%clk 0:00:55]}  Nxe4 {[%clk 0:01:12]} 29. Rxb6 {[%clk 0:00:55]}  Rc7 {[%clk 0:00:57]} 30. Ra6 {[%clk 0:00:41]}  Nd6 {[%clk 0:00:53]} 31. Rxd6 {[%clk 0:00:40]}  Rb7 {[%clk 0:00:53]} 32. Rd5 {[%clk 0:00:39]}  e4 {[%clk 0:00:50]} 33. b3 {[%clk 0:00:40]} 1-0


[Site "https://www.chess.com"]

[Event "Titled Tuesday Blitz April 26 Early 2022"]
[White "Hartikainen, Jarmo"]
[Black "Ozdemir, Serhan Berat"]
[WhiteFideId "503134"]
[BlackFideId "6374611"]
[WhiteElo "2106"]
[BlackElo "1920"]
[Result "1-0"]
[Round "02"]
[TimeControl "180+1"]
[Date "2022.04.26"]
[WhiteClock "0:00:08"]
[BlackClock "0:00:01"]

1. e4 {[%clk 0:03:00]}  c5 {[%clk 0:02:55]} 2. c3 {[%clk 0:02:59]}  d5 {[%clk 0:02:54]} 3. exd5 {[%clk 0:02:58]}  Qxd5 {[%clk 0:02:55]} 4. d4 {[%clk 0:02:59]}  Nc6 {[%clk 0:02:54]} 5. Nf3 {[%clk 0:02:58]}  Bg4 {[%clk 0:02:54]} 6. Be2 {[%clk 0:02:57]}  cxd4 {[%clk 0:02:43]} 7. cxd4 {[%clk 0:02:54]}  e6 {[%clk 0:02:43]} 8. Nc3 {[%clk 0:02:52]}  Qa5 {[%clk 0:02:41]} 9. O-O {[%clk 0:02:52]}  Nf6 {[%clk 0:02:30]} 10. Be3 {[%clk 0:02:49]}  Bd6 {[%clk 0:02:09]} 11. h3 {[%clk 0:02:47]}  Bh5 {[%clk 0:02:08]} 12. Rc1 {[%clk 0:02:42]}  O-O {[%clk 0:02:06]} 13. a3 {[%clk 0:02:41]}  Qd8 {[%clk 0:02:04]} 14. b4 {[%clk 0:02:35]}  Rc8 {[%clk 0:01:48]} 15. Qb3 {[%clk 0:02:27]}  Ne7 {[%clk 0:01:08]} 16. Bg5 {[%clk 0:01:48]}  Bb8 {[%clk 0:01:07]} 17. Bh4 {[%clk 0:01:10]}  a6 {[%clk 0:00:44]} 18. Rfd1 {[%clk 0:01:07]}  Ng6 {[%clk 0:00:22]} 19. Bg5 {[%clk 0:00:58]}  Qd6 {[%clk 0:00:15]} 20. g3 {[%clk 0:00:47]}  Bxf3 {[%clk 0:00:06]} 21. Bxf3 {[%clk 0:00:45]}  h6 {[%clk 0:00:05]} 22. Bxf6 {[%clk 0:00:38]}  gxf6 {[%clk 0:00:06]} 23. Ne4 {[%clk 0:00:38]}  Qe7 {[%clk 0:00:05]} 24. Qe3 {[%clk 0:00:29]}  Kh7 {[%clk 0:00:03]} 25. h4 {[%clk 0:00:25]}  f5 {[%clk 0:00:03]} 26. Nc5 {[%clk 0:00:20]}  f4 {[%clk 0:00:03]} 27. Qe1 {[%clk 0:00:14]}  fxg3 {[%clk 0:00:02]} 28. fxg3 {[%clk 0:00:14]}  Qf6 {[%clk 0:00:01]} 29. Kg2 {[%clk 0:00:14]}  Ne7 {[%clk 0:00:01]} 30. Be4+ {[%clk 0:00:12]}  Nf5 {[%clk 0:00:01]} 31. Bxf5+ {[%clk 0:00:08]} 1-0


[Site "https://www.chess.com"]

[Event "Titled Tuesday Blitz April 26 Early 2022"]
[White "Haukenfrers, Dale"]
[Black "Toncheva, Nadya"]
[WhiteFideId "2603780"]
[BlackFideId "2924056"]
[WhiteElo "2020"]
[BlackElo "1884"]
[Result "1-0"]
[Round "02"]
[TimeControl "180+1"]
[Date "2022.04.26"]
[WhiteClock "0:01:00"]
[BlackClock "0:00:03"]

1. c3 {[%clk 0:03:00]}  e5 {[%clk 0:02:58]} 2. f3 {[%clk 0:03:01]}  d5 {[%clk 0:02:58]} 3. e4 {[%clk 0:03:01]}  dxe4 {[%clk 0:02:57]} 4. Be2 {[%clk 0:03:01]}  exf3 {[%clk 0:02:57]} 5. Nxf3 {[%clk 0:03:00]}  Nc6 {[%clk 0:02:46]} 6. O-O {[%clk 0:02:59]}  Nf6 {[%clk 0:02:43]} 7. d4 {[%clk 0:02:59]}  exd4 {[%clk 0:02:40]} 8. cxd4 {[%clk 0:02:57]}  Be7 {[%clk 0:02:34]} 9. Nc3 {[%clk 0:02:56]}  Be6 {[%clk 0:02:27]} 10. Kh1 {[%clk 0:02:32]}  O-O {[%clk 0:02:20]} 11. Be3 {[%clk 0:02:33]}  Nd5 {[%clk 0:02:18]} 12. Bg1 {[%clk 0:02:26]}  Bf6 {[%clk 0:02:09]} 13. Ne4 {[%clk 0:02:24]}  Qd7 {[%clk 0:01:55]} 14. Rc1 {[%clk 0:02:22]}  Rad8 {[%clk 0:01:48]} 15. Qa4 {[%clk 0:02:15]}  Be7 {[%clk 0:00:59]} 16. a3 {[%clk 0:02:10]}  Nb6 {[%clk 0:00:55]} 17. Qc2 {[%clk 0:02:07]}  Bf5 {[%clk 0:00:49]} 18. Bd3 {[%clk 0:02:04]}  g6 {[%clk 0:00:29]} 19. b4 {[%clk 0:02:02]}  a6 {[%clk 0:00:25]} 20. Qb3 {[%clk 0:01:43]}  Qd5 {[%clk 0:00:19]} 21. Qc2 {[%clk 0:01:40]}  Rfe8 {[%clk 0:00:15]} 22. Qb1 {[%clk 0:01:28]}  Qd7 {[%clk 0:00:11]} 23. Rc5 {[%clk 0:01:25]}  Bxc5 {[%clk 0:00:09]} 24. Nf6+ {[%clk 0:01:25]}  Kg7 {[%clk 0:00:08]} 25. Nxd7 {[%clk 0:01:26]}  Bxd3 {[%clk 0:00:08]} 26. Qxd3 {[%clk 0:01:21]}  Nxd7 {[%clk 0:00:05]} 27. dxc5 {[%clk 0:01:18]}  Nde5 {[%clk 0:00:03]} 28. Qc3 {[%clk 0:01:17]}  f6 {[%clk 0:00:03]} 29. Nxe5 {[%clk 0:01:11]}  Nxe5 {[%clk 0:00:03]} 30. h3 {[%clk 0:01:11]}  Rd3 {[%clk 0:00:04]} 31. Qb2 {[%clk 0:01:10]}  Red8 {[%clk 0:00:04]} 32. Qf2 {[%clk 0:01:07]}  f5 {[%clk 0:00:04]} 33. Qb2 {[%clk 0:01:07]}  Kf6 {[%clk 0:00:04]} 34. Bh2 {[%clk 0:01:06]}  R8d5 {[%clk 0:00:03]} 35. Re1 {[%clk 0:01:06]}  Rd1 {[%clk 0:00:03]} 36. Bxe5+ {[%clk 0:01:04]}  Kf7 {[%clk 0:00:03]} 37. Bg3 {[%clk 0:01:00]} 1-0


[Site "https://www.chess.com"]

[Event "Titled Tuesday Blitz April 26 Early 2022"]
[White "Ibadov, Dashgyn"]
[Black "Allahverdiyeva, Ayan"]
[WhiteFideId "24107514"]
[BlackFideId "13412590"]
[WhiteElo "2138"]
[BlackElo "1910"]
[Result "0-1"]
[Round "02"]
[TimeControl "180+1"]
[Date "2022.04.26"]
[WhiteClock "0:00:31"]
[BlackClock "0:00:02"]

1. e4 {[%clk 0:03:00]}  c5 {[%clk 0:02:53]} 2. Nf3 {[%clk 0:02:53]}  d6 {[%clk 0:02:52]} 3. d4 {[%clk 0:02:52]}  cxd4 {[%clk 0:02:52]} 4. Qxd4 {[%clk 0:02:52]}  Nc6 {[%clk 0:02:50]} 5. Bb5 {[%clk 0:02:52]}  Bd7 {[%clk 0:02:51]} 6. Bxc6 {[%clk 0:02:52]}  Bxc6 {[%clk 0:02:51]} 7. Nc3 {[%clk 0:02:53]}  Nf6 {[%clk 0:02:43]} 8. Bg5 {[%clk 0:02:53]}  Qa5 {[%clk 0:02:31]} 9. Bxf6 {[%clk 0:02:50]}  gxf6 {[%clk 0:02:31]} 10. O-O-O {[%clk 0:02:45]}  h5 {[%clk 0:02:30]} 11. Kb1 {[%clk 0:02:44]}  b5 {[%clk 0:02:23]} 12. Nd5 {[%clk 0:02:43]}  Rc8 {[%clk 0:02:08]} 13. Nh4 {[%clk 0:02:40]}  Qa4 {[%clk 0:01:38]} 14. Qd3 {[%clk 0:02:39]}  Bxd5 {[%clk 0:01:37]} 15. Qxd5 {[%clk 0:02:37]}  Qxc2+ {[%clk 0:01:19]} 16. Ka1 {[%clk 0:02:37]}  Qc4 {[%clk 0:01:04]} 17. Qb7 {[%clk 0:02:34]}  Qc6 {[%clk 0:00:41]} 18. Qxa7 {[%clk 0:02:32]}  Qxe4 {[%clk 0:00:41]} 19. Nf3 {[%clk 0:00:59]}  Ra8 {[%clk 0:00:21]} 20. Qb6 {[%clk 0:00:53]}  Qc4 {[%clk 0:00:20]} 21. a3 {[%clk 0:00:46]}  f5 {[%clk 0:00:20]} 22. Rc1 {[%clk 0:00:41]}  Rxa3+ {[%clk 0:00:19]} 23. Kb1 {[%clk 0:00:34]}  Qa2+ {[%clk 0:00:18]} 24. Kc2 {[%clk 0:00:34]}  Qb3+ {[%clk 0:00:18]} 25. Kb1 {[%clk 0:00:35]}  Qd3+ {[%clk 0:00:14]} 26. Rc2 {[%clk 0:00:34]}  Ra1+ {[%clk 0:00:06]} 27. Kxa1 {[%clk 0:00:34]}  Qxc2 {[%clk 0:00:06]} 28. Qxb5+ {[%clk 0:00:32]}  Kd8 {[%clk 0:00:07]} 29. Nd4 {[%clk 0:00:31]}  Qc5 {[%clk 0:00:02]} 0-1


[Site "https://www.chess.com"]

[Event "Titled Tuesday Blitz April 26 Early 2022"]
[White "Ivic, Velimir"]
[Black "Tymrakiewicz, Rafal"]
[WhiteFideId "950122"]
[BlackFideId "1108832"]
[WhiteElo "2610"]
[BlackElo "2205"]
[Result "1-0"]
[Round "02"]
[TimeControl "180+1"]
[Date "2022.04.26"]
[WhiteClock "0:01:31"]
[BlackClock "0:01:56"]

1. e4 {[%clk 0:03:00]}  Nf6 {[%clk 0:03:00]} 2. e5 {[%clk 0:02:59]}  Nd5 {[%clk 0:02:58]} 3. d4 {[%clk 0:03:00]}  d6 {[%clk 0:02:58]} 4. c4 {[%clk 0:03:00]}  Nb6 {[%clk 0:02:58]} 5. f4 {[%clk 0:03:01]}  dxe5 {[%clk 0:02:58]} 6. fxe5 {[%clk 0:03:02]}  c5 {[%clk 0:02:58]} 7. d5 {[%clk 0:03:02]}  e6 {[%clk 0:02:59]} 8. Nc3 {[%clk 0:03:02]}  exd5 {[%clk 0:02:59]} 9. cxd5 {[%clk 0:03:03]}  c4 {[%clk 0:03:00]} 10. d6 {[%clk 0:03:00]}  Be6 {[%clk 0:02:58]} 11. Nf3 {[%clk 0:02:59]}  Nc6 {[%clk 0:02:55]} 12. Be2 {[%clk 0:02:56]}  a6 {[%clk 0:02:55]} 13. O-O {[%clk 0:02:54]}  h6 {[%clk 0:02:55]} 14. Nd4 {[%clk 0:02:31]}  Nxd4 {[%clk 0:02:49]} 15. Qxd4 {[%clk 0:02:32]}  Nd7 {[%clk 0:02:49]} 16. Be3 {[%clk 0:01:59]}  Qa5 {[%clk 0:02:44]} 17. Bxc4 {[%clk 0:01:56]}  Qxe5 {[%clk 0:02:29]} 18. Bxe6 {[%clk 0:01:56]}  fxe6 {[%clk 0:02:28]} 19. Qxe5 {[%clk 0:01:43]}  Nxe5 {[%clk 0:02:29]} 20. Rad1 {[%clk 0:01:42]}  O-O-O {[%clk 0:02:14]} 21. Bb6 {[%clk 0:01:33]}  Rd7 {[%clk 0:01:56]} 22. Ne4 {[%clk 0:01:31]}  Nc4 {[%clk 0:01:56]} 23. Rc1 {[%clk 0:01:31]} 1-0


[Site "https://www.chess.com"]

[Event "Titled Tuesday Blitz April 26 Early 2022"]
[White "Jumabayev, Rinat"]
[Black "Sirosh, Ilja"]
[WhiteFideId "13702661"]
[BlackFideId "4500458"]
[WhiteElo "2561"]
[BlackElo "2241"]
[Result "1-0"]
[Round "02"]
[TimeControl "180+1"]
[Date "2022.04.26"]
[WhiteClock "0:01:06"]
[BlackClock "0:00:04"]

1. d4 {[%clk 0:03:00]}  d5 {[%clk 0:02:59]} 2. c4 {[%clk 0:03:01]}  e6 {[%clk 0:02:59]} 3. Nf3 {[%clk 0:03:01]}  Nf6 {[%clk 0:02:56]} 4. g3 {[%clk 0:03:02]}  dxc4 {[%clk 0:02:53]} 5. Bg2 {[%clk 0:03:02]}  Nbd7 {[%clk 0:02:54]} 6. O-O {[%clk 0:03:02]}  c6 {[%clk 0:02:54]} 7. a4 {[%clk 0:03:01]}  a5 {[%clk 0:02:54]} 8. Qc2 {[%clk 0:03:00]}  b5 {[%clk 0:02:54]} 9. Rd1 {[%clk 0:03:00]}  Qb6 {[%clk 0:02:43]} 10. e4 {[%clk 0:02:37]}  Be7 {[%clk 0:02:35]} 11. h4 {[%clk 0:02:31]}  Bb7 {[%clk 0:02:27]} 12. Nc3 {[%clk 0:02:14]}  b4 {[%clk 0:02:17]} 13. e5 {[%clk 0:02:14]}  Nd5 {[%clk 0:02:09]} 14. Ne4 {[%clk 0:02:11]}  c5 {[%clk 0:02:04]} 15. Bg5 {[%clk 0:02:09]}  cxd4 {[%clk 0:01:27]} 16. Qxc4 {[%clk 0:01:59]}  O-O {[%clk 0:01:17]} 17. Qxd4 {[%clk 0:01:37]}  Bxg5 {[%clk 0:01:12]} 18. hxg5 {[%clk 0:01:31]}  Qxd4 {[%clk 0:01:01]} 19. Rxd4 {[%clk 0:01:32]}  Ba6 {[%clk 0:00:52]} 20. Nd6 {[%clk 0:01:29]}  Rfd8 {[%clk 0:00:50]} 21. Rc1 {[%clk 0:01:17]}  Nxe5 {[%clk 0:00:43]} 22. Nxe5 {[%clk 0:01:18]}  Rxd6 {[%clk 0:00:43]} 23. Rc7 {[%clk 0:01:18]}  Rf8 {[%clk 0:00:27]} 24. Ra7 {[%clk 0:01:17]}  f6 {[%clk 0:00:03]} 25. gxf6 {[%clk 0:01:07]}  gxf6 {[%clk 0:00:04]} 26. Rg4+ {[%clk 0:01:06]}  Kh8 {[%clk 0:00:04]} 27. Nf7+ {[%clk 0:01:06]} 1-0


[Site "https://www.chess.com"]

[Event "Titled Tuesday Blitz April 26 Early 2022"]
[White "Kadam, Om Manish"]
[Black "Moroni, Luca Jr"]
[WhiteFideId "45076294"]
[BlackFideId "865834"]
[WhiteElo "1729"]
[BlackElo "2573"]
[Result "0-1"]
[Round "02"]
[TimeControl "180+1"]
[Date "2022.04.26"]
[WhiteClock "0:00:25"]
[BlackClock "0:00:38"]

1. e4 {[%clk 0:03:00]}  d6 {[%clk 0:03:00]} 2. d4 {[%clk 0:02:58]}  e5 {[%clk 0:03:00]} 3. Nc3 {[%clk 0:02:58]}  exd4 {[%clk 0:03:00]} 4. Qxd4 {[%clk 0:02:59]}  Nf6 {[%clk 0:02:58]} 5. Nf3 {[%clk 0:02:58]}  Be7 {[%clk 0:02:58]} 6. Bg5 {[%clk 0:02:57]}  O-O {[%clk 0:02:58]} 7. Bc4 {[%clk 0:02:52]}  Nc6 {[%clk 0:02:52]} 8. Qd2 {[%clk 0:02:52]}  h6 {[%clk 0:02:49]} 9. Bh4 {[%clk 0:02:51]}  Nxe4 {[%clk 0:02:44]} 10. Nxe4 {[%clk 0:02:49]}  Bxh4 {[%clk 0:02:43]} 11. O-O {[%clk 0:02:48]}  Bf6 {[%clk 0:02:33]} 12. c3 {[%clk 0:02:40]}  Bf5 {[%clk 0:02:33]} 13. Bd5 {[%clk 0:02:36]}  Re8 {[%clk 0:02:24]} 14. Rfe1 {[%clk 0:02:35]}  Be6 {[%clk 0:02:23]} 15. Re2 {[%clk 0:02:20]}  Bxd5 {[%clk 0:01:54]} 16. Qxd5 {[%clk 0:02:17]}  Re6 {[%clk 0:01:55]} 17. Rae1 {[%clk 0:02:16]}  Qd7 {[%clk 0:01:50]} 18. Nxf6+ {[%clk 0:01:36]}  Rxf6 {[%clk 0:01:48]} 19. Ne5 {[%clk 0:01:35]}  Nxe5 {[%clk 0:01:43]} 20. Rxe5 {[%clk 0:01:34]}  c6 {[%clk 0:01:29]} 21. Qd2 {[%clk 0:01:26]}  Re6 {[%clk 0:01:27]} 22. Rxe6 {[%clk 0:01:16]}  fxe6 {[%clk 0:01:28]} 23. Rd1 {[%clk 0:01:15]}  d5 {[%clk 0:01:26]} 24. Qe3 {[%clk 0:01:14]}  a6 {[%clk 0:01:20]} 25. Re1 {[%clk 0:01:10]}  Re8 {[%clk 0:01:20]} 26. Qe5 {[%clk 0:00:57]}  Qd8 {[%clk 0:01:09]} 27. b3 {[%clk 0:00:52]}  Qf6 {[%clk 0:01:00]} 28. f3 {[%clk 0:00:51]}  Qxe5 {[%clk 0:00:59]} 29. Rxe5 {[%clk 0:00:48]}  Kf7 {[%clk 0:01:00]} 30. Kf2 {[%clk 0:00:48]}  Ke7 {[%clk 0:01:00]} 31. Re1 {[%clk 0:00:48]}  Kd6 {[%clk 0:00:59]} 32. Ke3 {[%clk 0:00:48]}  e5 {[%clk 0:00:59]} 33. Kd3 {[%clk 0:00:48]}  b5 {[%clk 0:00:58]} 34. Re2 {[%clk 0:00:46]}  Rf8 {[%clk 0:00:57]} 35. Re1 {[%clk 0:00:45]}  g5 {[%clk 0:00:57]} 36. Re2 {[%clk 0:00:46]}  Rf4 {[%clk 0:00:57]} 37. Ke3 {[%clk 0:00:45]}  a5 {[%clk 0:00:50]} 38. g3 {[%clk 0:00:45]}  Rf7 {[%clk 0:00:49]} 39. Rf2 {[%clk 0:00:44]}  Kc5 {[%clk 0:00:48]} 40. a3 {[%clk 0:00:44]}  b4 {[%clk 0:00:48]} 41. axb4+ {[%clk 0:00:38]}  axb4 {[%clk 0:00:48]} 42. Rc2 {[%clk 0:00:38]}  Rf6 {[%clk 0:00:45]} 43. Ke2 {[%clk 0:00:38]}  bxc3 {[%clk 0:00:45]} 44. Rxc3+ {[%clk 0:00:38]}  Kb4 {[%clk 0:00:46]} 45. Re3 {[%clk 0:00:38]}  Re6 {[%clk 0:00:45]} 46. h4 {[%clk 0:00:33]}  gxh4 {[%clk 0:00:44]} 47. gxh4 {[%clk 0:00:33]}  c5 {[%clk 0:00:44]} 48. Kd2 {[%clk 0:00:32]}  e4 {[%clk 0:00:42]} 49. fxe4 {[%clk 0:00:32]}  Rxe4 {[%clk 0:00:43]} 50. Rf3 {[%clk 0:00:26]}  Rxh4 {[%clk 0:00:41]} 51. Kc2 {[%clk 0:00:25]}  Rh2+ {[%clk 0:00:38]} 0-1


[Site "https://www.chess.com"]

[Event "Titled Tuesday Blitz April 26 Early 2022"]
[White "Karavade, Eesha"]
[Black "Yuan, Qingyu"]
[WhiteFideId "5012600"]
[BlackFideId "8609772"]
[WhiteElo "2543"]
[BlackElo "2844"]
[Result "0-1"]
[Round "02"]
[TimeControl "180+1"]
[Date "2022.04.26"]
[WhiteClock "0:00:21"]
[BlackClock "0:00:20"]

1. d4 {[%clk 0:03:00]}  d5 {[%clk 0:02:55]} 2. c4 {[%clk 0:03:00]}  e6 {[%clk 0:02:56]} 3. Nc3 {[%clk 0:02:59]}  Nf6 {[%clk 0:02:56]} 4. Nf3 {[%clk 0:02:59]}  a6 {[%clk 0:02:56]} 5. cxd5 {[%clk 0:02:57]}  exd5 {[%clk 0:02:57]} 6. Bg5 {[%clk 0:02:53]}  Be6 {[%clk 0:02:55]} 7. e3 {[%clk 0:02:52]}  Nbd7 {[%clk 0:02:55]} 8. Bd3 {[%clk 0:02:51]}  Bd6 {[%clk 0:02:54]} 9. O-O {[%clk 0:02:49]}  c6 {[%clk 0:02:54]} 10. e4 {[%clk 0:02:41]}  dxe4 {[%clk 0:02:52]} 11. Nxe4 {[%clk 0:02:41]}  Be7 {[%clk 0:02:52]} 12. Qe2 {[%clk 0:02:34]}  O-O {[%clk 0:02:47]} 13. Ne5 {[%clk 0:02:24]}  Re8 {[%clk 0:02:36]} 14. Rfe1 {[%clk 0:02:11]}  Nd5 {[%clk 0:02:07]} 15. Bxe7 {[%clk 0:02:05]}  Qxe7 {[%clk 0:02:08]} 16. Qh5 {[%clk 0:01:57]}  N7f6 {[%clk 0:01:58]} 17. Nxf6+ {[%clk 0:01:55]}  Nxf6 {[%clk 0:01:59]} 18. Qh4 {[%clk 0:01:54]}  g6 {[%clk 0:01:56]} 19. Nf3 {[%clk 0:01:52]}  Rad8 {[%clk 0:01:39]} 20. Ng5 {[%clk 0:01:47]}  Nh5 {[%clk 0:01:28]} 21. g4 {[%clk 0:01:17]}  Rxd4 {[%clk 0:01:26]} 22. Be4 {[%clk 0:01:07]}  Nf6 {[%clk 0:01:03]} 23. Bf3 {[%clk 0:00:54]}  Kg7 {[%clk 0:00:54]} 24. Nxe6+ {[%clk 0:00:45]}  fxe6 {[%clk 0:00:54]} 25. Qg3 {[%clk 0:00:41]}  Qd6 {[%clk 0:00:40]} 26. g5 {[%clk 0:00:41]}  Nd7 {[%clk 0:00:37]} 27. Rad1 {[%clk 0:00:39]}  Qxg3+ {[%clk 0:00:34]} 28. hxg3 {[%clk 0:00:39]}  Rxd1 {[%clk 0:00:34]} 29. Rxd1 {[%clk 0:00:39]}  Re7 {[%clk 0:00:33]} 30. b4 {[%clk 0:00:34]}  h6 {[%clk 0:00:29]} 31. gxh6+ {[%clk 0:00:32]}  Kxh6 {[%clk 0:00:30]} 32. Be4 {[%clk 0:00:32]}  Nf6 {[%clk 0:00:29]} 33. Bc2 {[%clk 0:00:31]}  Nd5 {[%clk 0:00:29]} 34. a3 {[%clk 0:00:29]}  e5 {[%clk 0:00:26]} 35. Be4 {[%clk 0:00:27]}  Nc3 {[%clk 0:00:25]} 36. Re1 {[%clk 0:00:26]}  Kg5 {[%clk 0:00:25]} 37. Bc2 {[%clk 0:00:22]}  Kf6 {[%clk 0:00:25]} 38. Re3 {[%clk 0:00:20]}  Nb5 {[%clk 0:00:25]} 39. Rf3+ {[%clk 0:00:20]}  Kg7 {[%clk 0:00:25]} 40. Re3 {[%clk 0:00:20]}  Nd4 {[%clk 0:00:24]} 41. Be4 {[%clk 0:00:20]}  Kf6 {[%clk 0:00:24]} 42. Kg2 {[%clk 0:00:21]}  Rd7 {[%clk 0:00:23]} 43. Rc3 {[%clk 0:00:21]}  Nf5 {[%clk 0:00:21]} 44. Rf3 {[%clk 0:00:21]}  Ke6 {[%clk 0:00:20]} 45. g4 {[%clk 0:00:21]}  Ne7 {[%clk 0:00:20]} 46. g5 {[%clk 0:00:20]}  Nf5 {[%clk 0:00:17]} 47. Bxf5+ {[%clk 0:00:20]}  gxf5 {[%clk 0:00:18]} 48. Rh3 {[%clk 0:00:20]}  Rg7 {[%clk 0:00:16]} 49. Rg3 {[%clk 0:00:20]}  f4 {[%clk 0:00:16]} 50. Rg4 {[%clk 0:00:20]}  Kf5 {[%clk 0:00:17]} 51. f3 {[%clk 0:00:20]}  Rxg5 {[%clk 0:00:18]} 52. Rxg5+ {[%clk 0:00:20]}  Kxg5 {[%clk 0:00:19]} 53. Kf2 {[%clk 0:00:20]}  Kf5 {[%clk 0:00:19]} 54. Ke2 {[%clk 0:00:21]}  e4 {[%clk 0:00:20]} 0-1


[Site "https://www.chess.com"]